[Event "Live Chess"]
[Site "Chess.com"]
[Date "2024.06.01"]
[Round "-"]
[White "degringolade64"]
[Black "wadsy27"]
[Result "1-0"]
[WhiteElo "2160"]
[BlackElo "2547"]
[TimeControl "300"]
[EndTime "12:57:37 PDT"]
[Termination "degringolade64 won by resignation"]

1. e4 {[%clk 0:04:57]} 1... Nf6 {[%clk 0:04:58.7]} 2. e5 {[%clk 0:04:55.5]} 2...
Nd5 {[%clk 0:04:58.3]} 3. d4 {[%clk 0:04:54.8]} 3... d6 {[%clk 0:04:58.1]} 4. c4
{[%clk 0:04:53.4]} 4... Nb6 {[%clk 0:04:57.6]} 5. f4 {[%clk 0:04:53]} 5... dxe5
{[%clk 0:04:55.3]} 6. fxe5 {[%clk 0:04:52.9]} 6... c5 {[%clk 0:04:53.5]} 7. d5
{[%clk 0:04:48.3]} 7... e6 {[%clk 0:04:51]} 8. Nc3 {[%clk 0:04:41.7]} 8... N8d7
{[%clk 0:04:18.6]} 9. Nf3 {[%clk 0:04:33.1]} 9... f6 {[%clk 0:03:55]} 10. dxe6
{[%clk 0:04:08.2]} 10... Nxe5 {[%clk 0:03:47.9]} 11. Qxd8+ {[%clk 0:04:06.2]}
11... Kxd8 {[%clk 0:03:47.5]} 12. Nxe5 {[%clk 0:04:04.8]} 12... fxe5 {[%clk
0:03:47.4]} 13. Bg5+ {[%clk 0:04:03]} 13... Be7 {[%clk 0:03:47]} 14. O-O-O+
{[%clk 0:04:00.7]} 14... Ke8 {[%clk 0:03:46.8]} 15. Bxe7 {[%clk 0:03:53.1]}
15... Kxe7 {[%clk 0:03:28.5]} 16. Nd5+ {[%clk 0:03:51.5]} 16... Nxd5 {[%clk
0:03:27.2]} 17. cxd5 {[%clk 0:03:51.4]} 17... Kd6 {[%clk 0:03:25.6]} 18. Bb5
{[%clk 0:03:28.4]} 18... a6 {[%clk 0:03:23.7]} 19. Be2 {[%clk 0:02:57.1]} 19...
b5 {[%clk 0:03:07.4]} 20. Rhf1 {[%clk 0:02:55.1]} 20... Ra7 {[%clk 0:02:58.7]}
21. Rf5 {[%clk 0:02:35.4]} 21... Re7 {[%clk 0:02:56.5]} 22. Bf3 {[%clk
0:02:25.2]} 22... g6 {[%clk 0:02:56.1]} 23. Rf6 {[%clk 0:02:15.7]} 23... Bb7
{[%clk 0:02:52.5]} 24. Be4 {[%clk 0:02:11.7]} 24... Rc8 {[%clk 0:02:51.3]} 25.
Kd2 {[%clk 0:01:59.8]} 25... c4 {[%clk 0:02:49.8]} 26. Ke3 {[%clk 0:01:58.5]}
26... Rc5 {[%clk 0:02:49.1]} 27. Rf8 {[%clk 0:01:47]} 27... Rc8 {[%clk 0:02:48]}
28. Rxc8 {[%clk 0:01:36.2]} 28... Bxc8 {[%clk 0:02:47.9]} 29. Rf1 {[%clk
0:01:33]} 29... Bb7 {[%clk 0:02:47.4]} 30. Rf8 {[%clk 0:01:29.1]} 30... Bxd5
{[%clk 0:02:41.1]} 31. Rd8+ {[%clk 0:01:27.3]} 31... Kxe6 {[%clk 0:02:40.6]} 32.
Bxd5+ {[%clk 0:01:24.9]} 32... Kf6 {[%clk 0:02:40.3]} 33. Rd6+ {[%clk
0:01:21.1]} 33... Kf5 {[%clk 0:02:39.6]} 34. Rxa6 {[%clk 0:01:20.2]} 34... Rc7
{[%clk 0:02:33.4]} 35. Be4+ {[%clk 0:01:17.2]} 35... Kg5 {[%clk 0:02:30.6]} 36.
Rc6 {[%clk 0:01:11.5]} 36... Ra7 {[%clk 0:02:23.6]} 37. a3 {[%clk 0:01:09.5]}
37... Ra4 {[%clk 0:02:10.3]} 38. Rc5 {[%clk 0:01:07]} 38... c3 {[%clk
0:02:02.5]} 39. Rxc3 {[%clk 0:01:04.7]} 39... Kf6 {[%clk 0:01:59.4]} 40. Rc5
{[%clk 0:01:00.9]} 40... Ra5 {[%clk 0:01:58.8]} 41. Bd3 {[%clk 0:00:57.5]} 41...
Ra7 {[%clk 0:01:58.2]} 42. Rxb5 {[%clk 0:00:55.9]} 42... Ke6 {[%clk 0:01:58.1]}
43. Ke4 {[%clk 0:00:50.5]} 43... Ra4+ {[%clk 0:01:53.6]} 44. Rb4 {[%clk
0:00:49.3]} 44... Ra5 {[%clk 0:01:53.2]} 45. Rb6+ {[%clk 0:00:47.9]} 45... Kd7
{[%clk 0:01:53]} 46. Ra6 {[%clk 0:00:43.8]} 46... Rc5 {[%clk 0:01:49.7]} 47. b4
{[%clk 0:00:41.8]} 47... Rc3 {[%clk 0:01:47.6]} 48. Bb5+ {[%clk 0:00:38.9]}
48... Kc7 {[%clk 0:01:46.4]} 49. Rc6+ {[%clk 0:00:35.5]} 49... Rxc6 {[%clk
0:01:45.4]} 50. Bxc6 {[%clk 0:00:35.4]} 50... Kxc6 {[%clk 0:01:45]} 51. Kxe5
{[%clk 0:00:34.8]} 1-0

[Event "Live Chess"]
[Site "Chess.com"]
[Date "2024.06.01"]
[Round "-"]
[White "Ksenia_2013"]
[Black "PaulHumphreys"]
[Result "0-1"]
[WhiteElo "835"]
[BlackElo "1394"]
[TimeControl "300"]
[EndTime "12:57:38 PDT"]
[Termination "PaulHumphreys won by checkmate"]

1. e4 {[%clk 0:04:58.6]} 1... e5 {[%clk 0:04:58.1]} 2. Nf3 {[%clk 0:04:55.3]}
2... Nc6 {[%clk 0:04:54.8]} 3. Bc4 {[%clk 0:04:54.2]} 3... Bc5 {[%clk
0:04:52.8]} 4. O-O {[%clk 0:04:52.2]} 4... Nf6 {[%clk 0:04:50.3]} 5. Nc3 {[%clk
0:04:50.9]} 5... d6 {[%clk 0:04:48.8]} 6. d3 {[%clk 0:04:49]} 6... O-O {[%clk
0:04:47.4]} 7. Bg5 {[%clk 0:04:47.9]} 7... h6 {[%clk 0:04:44.3]} 8. Bxh6 {[%clk
0:04:44.8]} 8... gxh6 {[%clk 0:04:41.8]} 9. Nh4 {[%clk 0:04:37.7]} 9... Na5
{[%clk 0:04:29.1]} 10. Qf3 {[%clk 0:04:35.1]} 10... Nxc4 {[%clk 0:04:26]} 11.
Qg3+ {[%clk 0:04:31.7]} 11... Kh7 {[%clk 0:04:22.3]} 12. dxc4 {[%clk 0:04:26.3]}
12... Rg8 {[%clk 0:04:18]} 13. Qf3 {[%clk 0:04:05.5]} 13... Bg4 {[%clk
0:04:09.6]} 14. Qg3 {[%clk 0:03:55.3]} 14... Bh5 {[%clk 0:04:02.2]} 15. Qd3
{[%clk 0:03:46.5]} 15... Ng4 {[%clk 0:03:49.4]} 16. Qf3 {[%clk 0:03:30.4]} 16...
Qxh4 {[%clk 0:03:39.8]} 17. h3 {[%clk 0:03:23]} 17... Nxf2 {[%clk 0:03:19.1]}
18. Qxf2 {[%clk 0:03:11]} 18... Bxf2+ {[%clk 0:03:14.3]} 19. Rxf2 {[%clk
0:03:09.6]} 19... Qg3 {[%clk 0:03:11.1]} 20. Raf1 {[%clk 0:03:07.6]} 20... c6
{[%clk 0:03:00.4]} 21. Ne2 {[%clk 0:03:04.6]} 21... Bxe2 {[%clk 0:02:53]} 22.
Rxf7+ {[%clk 0:03:00.8]} 22... Kh8 {[%clk 0:02:43.5]} 23. R1f6 {[%clk
0:02:53.7]} 23... Qxg2# {[%clk 0:02:41.3]} 0-1

[Event "Live Chess"]
[Site "Chess.com"]
[Date "2024.06.01"]
[Round "-"]
[White "koekoekoe"]
[Black "Stanbad1"]
[Result "0-1"]
[WhiteElo "2055"]
[BlackElo "2666"]
[TimeControl "300"]
[EndTime "12:57:56 PDT"]
[Termination "Stanbad1 won by resignation"]

1. d4 {[%clk 0:04:59.5]} 1... Nf6 {[%clk 0:04:58.3]} 2. Bf4 {[%clk 0:04:59]}
2... g6 {[%clk 0:04:57.7]} 3. e3 {[%clk 0:04:58.6]} 3... Bg7 {[%clk 0:04:56.8]}
4. c4 {[%clk 0:04:58.3]} 4... c5 {[%clk 0:04:55.4]} 5. Nf3 {[%clk 0:04:56.9]}
5... cxd4 {[%clk 0:04:54.2]} 6. exd4 {[%clk 0:04:56.8]} 6... O-O {[%clk
0:04:53.4]} 7. Nc3 {[%clk 0:04:56.3]} 7... d5 {[%clk 0:04:53]} 8. cxd5 {[%clk
0:04:54]} 8... Nxd5 {[%clk 0:04:52.9]} 9. Bg3 {[%clk 0:04:49.9]} 9... Nc6 {[%clk
0:04:51.8]} 10. Bc4 {[%clk 0:04:42.6]} 10... Nb6 {[%clk 0:04:50.6]} 11. Bb3
{[%clk 0:04:41.8]} 11... Bg4 {[%clk 0:04:48.1]} 12. O-O {[%clk 0:04:37.1]} 12...
Nxd4 {[%clk 0:04:46.8]} 13. Re1 {[%clk 0:04:28.1]} 13... Nxf3+ {[%clk
0:04:41.4]} 14. gxf3 {[%clk 0:04:28]} 14... Qxd1 {[%clk 0:04:40.2]} 15. Raxd1
{[%clk 0:04:26.6]} 15... Bxf3 {[%clk 0:04:38.7]} 16. Rd3 {[%clk 0:04:22.3]}
16... Bc6 {[%clk 0:04:37.2]} 17. Rxe7 {[%clk 0:04:20.6]} 17... Rae8 {[%clk
0:04:35.6]} 18. Rde3 {[%clk 0:04:02.2]} 18... Rxe7 {[%clk 0:04:29.3]} 19. Rxe7
{[%clk 0:04:02.1]} 19... Bf6 {[%clk 0:04:28.3]} 20. Re3 {[%clk 0:03:48.2]} 20...
Rd8 {[%clk 0:04:25.2]} 21. Bc7 {[%clk 0:03:44]} 21... Rd2 {[%clk 0:04:18.9]} 22.
Bxb6 {[%clk 0:03:23.7]} 22... axb6 {[%clk 0:04:16.6]} 23. Ne4 {[%clk 0:03:23.2]}
23... Rxb2 {[%clk 0:03:50.1]} 24. Nxf6+ {[%clk 0:03:19.3]} 24... Kg7 {[%clk
0:03:49.6]} 25. Ne8+ {[%clk 0:03:16.6]} 25... Kf8 {[%clk 0:03:48.1]} 26. Kf1
{[%clk 0:02:59.8]} 26... Bxe8 {[%clk 0:03:44.9]} 27. Rf3 {[%clk 0:02:54.3]}
27... f5 {[%clk 0:03:42.5]} 28. Rc3 {[%clk 0:02:48.8]} 28... Bc6 {[%clk
0:03:40.6]} 29. Rc4 {[%clk 0:02:42.1]} 29... Bb5 {[%clk 0:03:37.8]} 30. Ke1
{[%clk 0:02:39.8]} 30... Bxc4 {[%clk 0:03:33.3]} 31. Bxc4 {[%clk 0:02:39.7]} 0-1

[Event "Live Chess"]
[Site "Chess.com"]
[Date "2024.06.01"]
[Round "-"]
[White "WilliamofOrange16th"]
[Black "vincents82"]
[Result "1/2-1/2"]
[WhiteElo "1974"]
[BlackElo "2081"]
[TimeControl "300"]
[EndTime "12:57:58 PDT"]
[Termination "Game drawn by repetition"]

1. e4 {[%clk 0:04:57.1]} 1... d5 {[%clk 0:04:54.1]} 2. exd5 {[%clk 0:04:53.4]}
2... Qxd5 {[%clk 0:04:53.2]} 3. Nc3 {[%clk 0:04:52.7]} 3... Qd8 {[%clk
0:04:52.1]} 4. Nf3 {[%clk 0:04:51.8]} 4... Bg4 {[%clk 0:04:50.8]} 5. Be2 {[%clk
0:04:51.4]} 5... e6 {[%clk 0:04:50]} 6. h3 {[%clk 0:04:49.7]} 6... Bxf3 {[%clk
0:04:49]} 7. Bxf3 {[%clk 0:04:49]} 7... c6 {[%clk 0:04:48.7]} 8. O-O {[%clk
0:04:42.6]} 8... Nf6 {[%clk 0:04:48.3]} 9. Ne4 {[%clk 0:04:40.6]} 9... Nbd7
{[%clk 0:04:48]} 10. Nxf6+ {[%clk 0:04:39.1]} 10... Nxf6 {[%clk 0:04:47.8]} 11.
d4 {[%clk 0:04:38.2]} 11... Be7 {[%clk 0:04:47.4]} 12. c3 {[%clk 0:04:37.6]}
12... O-O {[%clk 0:04:46.2]} 13. Bg5 {[%clk 0:04:35.9]} 13... Nd5 {[%clk
0:04:44.3]} 14. Bxe7 {[%clk 0:04:35.2]} 14... Qxe7 {[%clk 0:04:43.1]} 15. Re1
{[%clk 0:04:33.1]} 15... Qd7 {[%clk 0:04:40.1]} 16. Qc2 {[%clk 0:04:30.6]} 16...
Rac8 {[%clk 0:04:39.1]} 17. Be4 {[%clk 0:04:29.5]} 17... Nf6 {[%clk 0:04:38.2]}
18. Bf3 {[%clk 0:04:27.5]} 18... Rfd8 {[%clk 0:04:37]} 19. Rad1 {[%clk
0:04:25.7]} 19... Qc7 {[%clk 0:04:36.5]} 20. g3 {[%clk 0:04:22.1]} 20... b6
{[%clk 0:04:35.8]} 21. Qd2 {[%clk 0:04:16.5]} 21... c5 {[%clk 0:04:34.1]} 22.
Qg5 {[%clk 0:04:11.1]} 22... cxd4 {[%clk 0:04:30.6]} 23. cxd4 {[%clk 0:04:09.4]}
23... Qd6 {[%clk 0:04:26.3]} 24. Rd2 {[%clk 0:03:58.7]} 24... Nd5 {[%clk
0:04:20.2]} 25. Be4 {[%clk 0:03:54.6]} 25... h6 {[%clk 0:04:17.9]} 26. Qh5
{[%clk 0:03:45]} 26... Nf6 {[%clk 0:04:16.3]} 27. Qf3 {[%clk 0:03:41.9]} 27...
Nxe4 {[%clk 0:04:15.3]} 28. Qxe4 {[%clk 0:03:41.5]} 28... Qd5 {[%clk 0:04:14.8]}
29. Qxd5 {[%clk 0:03:30.1]} 29... Rxd5 {[%clk 0:04:13.4]} 30. Re5 {[%clk
0:03:28]} 30... Rcd8 {[%clk 0:04:11.4]} 31. Rxd5 {[%clk 0:03:27.5]} 31... Rxd5
{[%clk 0:04:10.3]} 32. b4 {[%clk 0:03:22.2]} 32... e5 {[%clk 0:04:08.7]} 33. Kf1
{[%clk 0:03:19.8]} 33... Rxd4 {[%clk 0:04:04.2]} 34. Rxd4 {[%clk 0:03:18.9]}
34... exd4 {[%clk 0:04:03.4]} 35. Ke2 {[%clk 0:03:18.8]} 35... Kf8 {[%clk
0:04:02.8]} 36. Kd3 {[%clk 0:03:18.5]} 36... Ke7 {[%clk 0:04:02.4]} 37. Kxd4
{[%clk 0:03:18.4]} 37... Kd6 {[%clk 0:04:01.9]} 38. a4 {[%clk 0:03:16]} 38... a6
{[%clk 0:04:00.5]} 39. b5 {[%clk 0:03:14.8]} 39... a5 {[%clk 0:03:51.7]} 40. h4
{[%clk 0:02:35.6]} 40... g6 {[%clk 0:03:41.2]} 41. g4 {[%clk 0:02:29.6]} 41...
f5 {[%clk 0:03:38.5]} 42. g5 {[%clk 0:02:16.4]} 42... h5 {[%clk 0:03:17.1]} 43.
f4 {[%clk 0:01:59.5]} 43... Ke6 {[%clk 0:03:15.8]} 44. Kc4 {[%clk 0:01:58.9]}
44... Kd6 {[%clk 0:03:14.7]} 45. Kd4 {[%clk 0:01:57.8]} 45... Ke6 {[%clk
0:03:14.3]} 46. Kc4 {[%clk 0:01:57.3]} 46... Kd6 {[%clk 0:03:13.9]} 47. Kd4
{[%clk 0:01:56.9]} 1/2-1/2

[Event "Live Chess"]
[Site "Chess.com"]
[Date "2024.06.01"]
[Round "-"]
[White "chessgoatpawel"]
[Black "jimwad"]
[Result "1-0"]
[WhiteElo "1957"]
[BlackElo "1269"]
[TimeControl "300"]
[EndTime "12:58:13 PDT"]
[Termination "chessgoatpawel won by resignation"]

1. e4 {[%clk 0:04:58.5]} 1... e5 {[%clk 0:04:59]} 2. Nf3 {[%clk 0:04:56.5]} 2...
Nc6 {[%clk 0:04:57.5]} 3. Bb5 {[%clk 0:04:55.8]} 3... Nf6 {[%clk 0:04:56.3]} 4.
O-O {[%clk 0:04:53.6]} 4... d6 {[%clk 0:04:53.2]} 5. d4 {[%clk 0:04:52.4]} 5...
Bd7 {[%clk 0:04:49.5]} 6. Bxc6 {[%clk 0:04:49.9]} 6... Bxc6 {[%clk 0:04:48]} 7.
dxe5 {[%clk 0:04:48.8]} 7... dxe5 {[%clk 0:04:45.7]} 8. Qxd8+ {[%clk 0:04:45.2]}
8... Rxd8 {[%clk 0:04:42.8]} 9. Nxe5 {[%clk 0:04:45.1]} 9... Bd6 {[%clk
0:04:39.4]} 10. Nf3 {[%clk 0:04:42.9]} 10... O-O {[%clk 0:04:36.2]} 11. e5
{[%clk 0:04:41.8]} 11... Ng4 {[%clk 0:04:33.7]} 12. exd6 {[%clk 0:04:40.1]}
12... Rxd6 {[%clk 0:04:32.2]} 13. Bf4 {[%clk 0:04:38]} 13... Rd7 {[%clk
0:04:24.9]} 14. Nc3 {[%clk 0:04:36]} 14... Nf6 {[%clk 0:04:09.3]} 15. Rad1
{[%clk 0:04:32.3]} 15... Rfd8 {[%clk 0:04:06.7]} 16. Rxd7 {[%clk 0:04:30.4]}
16... Rxd7 {[%clk 0:04:05.7]} 17. Rd1 {[%clk 0:04:30.1]} 17... Rxd1+ {[%clk
0:04:03.4]} 18. Nxd1 {[%clk 0:04:30]} 18... Nd5 {[%clk 0:04:00.9]} 19. Bg3
{[%clk 0:04:27.5]} 19... Bd7 {[%clk 0:03:47.3]} 20. Ne5 {[%clk 0:04:24.2]} 20...
Be6 {[%clk 0:03:40.3]} 21. c3 {[%clk 0:04:18.8]} 21... c6 {[%clk 0:03:39.1]} 22.
Ne3 {[%clk 0:04:16.5]} 22... Nxe3 {[%clk 0:03:37.3]} 23. fxe3 {[%clk 0:04:15.8]}
23... Bxa2 {[%clk 0:03:36.5]} 24. Nd7 {[%clk 0:04:14.4]} 24... Be6 {[%clk
0:03:31.4]} 25. Nc5 {[%clk 0:04:12.3]} 25... b6 {[%clk 0:03:25.2]} 26. Nxe6
{[%clk 0:04:09.8]} 26... fxe6 {[%clk 0:03:24.2]} 27. b4 {[%clk 0:04:05.9]} 27...
a5 {[%clk 0:03:18.6]} 28. bxa5 {[%clk 0:03:56.4]} 28... bxa5 {[%clk 0:03:17.5]}
29. Kf2 {[%clk 0:03:55.9]} 29... Kf7 {[%clk 0:03:16.1]} 30. Ke2 {[%clk
0:03:55.3]} 30... Kf6 {[%clk 0:03:15.3]} 31. Kd3 {[%clk 0:03:53.6]} 31... e5
{[%clk 0:03:14.5]} 32. Kc4 {[%clk 0:03:51.9]} 32... Ke6 {[%clk 0:03:11.4]} 33.
Kb3 {[%clk 0:03:49.1]} 33... Kd5 {[%clk 0:03:10]} 34. c4+ {[%clk 0:03:37.5]}
34... Ke4 {[%clk 0:03:07.9]} 35. Ka4 {[%clk 0:03:34.1]} 35... Kxe3 {[%clk
0:03:03.6]} 36. Bxe5 {[%clk 0:03:32.1]} 36... Ke4 {[%clk 0:03:03.1]} 37. Bxg7
{[%clk 0:03:28.8]} 37... h5 {[%clk 0:02:59.2]} 38. Kxa5 {[%clk 0:03:26.8]} 38...
Kf5 {[%clk 0:02:52.6]} 39. Kb6 {[%clk 0:03:19.7]} 39... Kg6 {[%clk 0:02:48.5]}
40. Kxc6 {[%clk 0:03:14.6]} 40... Kxg7 {[%clk 0:02:47]} 41. Kd7 {[%clk
0:03:14.5]} 1-0

[Event "Live Chess"]
[Site "Chess.com"]
[Date "2024.06.01"]
[Round "-"]
[White "RichardABates"]
[Black "ProfPoisson"]
[Result "1-0"]
[WhiteElo "2233"]
[BlackElo "1278"]
[TimeControl "300"]
[EndTime "12:58:22 PDT"]
[Termination "RichardABates won by resignation"]

1. d4 {[%clk 0:04:58.8]} 1... e6 {[%clk 0:04:57.3]} 2. c4 {[%clk 0:04:57]} 2...
f5 {[%clk 0:04:54.7]} 3. g3 {[%clk 0:04:55.5]} 3... Nf6 {[%clk 0:04:52.4]} 4.
Bg2 {[%clk 0:04:54.2]} 4... Be7 {[%clk 0:04:47.9]} 5. Nf3 {[%clk 0:04:52.7]}
5... d6 {[%clk 0:04:46.4]} 6. O-O {[%clk 0:04:51.3]} 6... O-O {[%clk 0:04:44.8]}
7. Nc3 {[%clk 0:04:50.1]} 7... Ne4 {[%clk 0:04:42]} 8. Qd3 {[%clk 0:04:44.1]}
8... b6 {[%clk 0:04:34.4]} 9. Nxe4 {[%clk 0:04:41.7]} 9... fxe4 {[%clk
0:04:26.4]} 10. Qxe4 {[%clk 0:04:40.4]} 10... d5 {[%clk 0:04:25]} 11. Qd3 {[%clk
0:04:31]} 11... Bb7 {[%clk 0:04:18.7]} 12. Ne5 {[%clk 0:04:27.9]} 12... dxc4
{[%clk 0:04:07.2]} 13. Qxc4 {[%clk 0:04:26.4]} 13... Bxg2 {[%clk 0:04:03.7]} 14.
Qxe6+ {[%clk 0:04:23.2]} 14... Kh8 {[%clk 0:03:58.1]} 15. Kxg2 {[%clk
0:04:21.9]} 15... Qxd4 {[%clk 0:03:37.5]} 16. Nf7+ {[%clk 0:04:12.3]} 16... Rxf7
{[%clk 0:03:33.6]} 17. Qxf7 {[%clk 0:04:11]} 17... Nc6 {[%clk 0:03:28]} 18. Be3
{[%clk 0:04:03.6]} 18... Qe4+ {[%clk 0:03:21.8]} 19. Qf3 {[%clk 0:04:01.6]}
19... Qxf3+ {[%clk 0:03:17]} 20. exf3 {[%clk 0:03:59.6]} 20... Rf8 {[%clk
0:03:16.4]} 21. f4 {[%clk 0:03:57.3]} 21... Nb4 {[%clk 0:03:10.2]} 22. Rfd1
{[%clk 0:03:54.6]} 22... Nc2 {[%clk 0:03:07.9]} 23. Rac1 {[%clk 0:03:52.7]}
23... Nxe3+ {[%clk 0:03:04.6]} 24. fxe3 {[%clk 0:03:51.5]} 24... c5 {[%clk
0:03:03.3]} 25. Rd7 {[%clk 0:03:49.4]} 25... Bf6 {[%clk 0:02:59.3]} 26. b3
{[%clk 0:03:47.4]} 26... Re8 {[%clk 0:02:50.9]} 27. Kf3 {[%clk 0:03:46.1]} 27...
h5 {[%clk 0:02:48.3]} 28. Rcd1 {[%clk 0:03:43.8]} 28... h4 {[%clk 0:02:35.6]}
29. g4 {[%clk 0:03:41.2]} 29... g5 {[%clk 0:02:33]} 30. Rf7 {[%clk 0:03:35.1]}
30... Bg7 {[%clk 0:02:18]} 31. Rdd7 {[%clk 0:03:32.4]} 31... gxf4 {[%clk
0:02:11.5]} 32. Rxg7 {[%clk 0:03:28.2]} 32... Rxe3+ {[%clk 0:02:08.1]} 33. Kxf4
{[%clk 0:03:26.7]} 33... Rh3 {[%clk 0:02:03.4]} 34. Rh7+ {[%clk 0:03:23.9]}
34... Kg8 {[%clk 0:02:00.4]} 35. Rdg7+ {[%clk 0:03:22.4]} 35... Kf8 {[%clk
0:01:58.6]} 36. Rxa7 {[%clk 0:03:21]} 36... Kg8 {[%clk 0:01:56.6]} 37. Rhc7
{[%clk 0:03:19.2]} 1-0

[Event "Live Chess"]
[Site "Chess.com"]
[Date "2024.06.01"]
[Round "-"]
[White "alicechristina"]
[Black "FlyingChessKestrel13"]
[Result "1/2-1/2"]
[WhiteElo "1840"]
[BlackElo "2078"]
[TimeControl "300"]
[EndTime "12:58:35 PDT"]
[Termination "Game drawn by repetition"]

1. c4 {[%clk 0:04:56.9]} 1... e6 {[%clk 0:04:57.3]} 2. e4 {[%clk 0:04:50.3]}
2... b6 {[%clk 0:04:55.2]} 3. Nc3 {[%clk 0:04:48.4]} 3... Bb7 {[%clk 0:04:54.7]}
4. d4 {[%clk 0:04:45.9]} 4... Ne7 {[%clk 0:04:53.5]} 5. Nf3 {[%clk 0:04:44.1]}
5... d5 {[%clk 0:04:52.2]} 6. cxd5 {[%clk 0:04:42.4]} 6... exd5 {[%clk
0:04:51.5]} 7. e5 {[%clk 0:04:41.6]} 7... Ng6 {[%clk 0:04:48.9]} 8. Bd3 {[%clk
0:04:40.9]} 8... Bb4 {[%clk 0:04:45.7]} 9. h4 {[%clk 0:04:39.4]} 9... Bxc3+
{[%clk 0:04:43.7]} 10. bxc3 {[%clk 0:04:37.8]} 10... Nd7 {[%clk 0:04:43]} 11. h5
{[%clk 0:04:36.9]} 11... Ne7 {[%clk 0:04:41.7]} 12. Ng5 {[%clk 0:04:35]} 12...
h6 {[%clk 0:04:40.2]} 13. Nf3 {[%clk 0:04:31.5]} 13... c5 {[%clk 0:04:38.9]} 14.
Be3 {[%clk 0:04:30]} 14... Qc7 {[%clk 0:04:37.1]} 15. Qd2 {[%clk 0:04:28.7]}
15... O-O-O {[%clk 0:04:34.4]} 16. O-O {[%clk 0:04:27.5]} 16... c4 {[%clk
0:04:30.1]} 17. Be2 {[%clk 0:04:25.2]} 17... Nf8 {[%clk 0:04:29]} 18. a4 {[%clk
0:04:24.2]} 18... Ne6 {[%clk 0:04:26.5]} 19. a5 {[%clk 0:04:22.1]} 19... b5
{[%clk 0:04:25.6]} 20. a6 {[%clk 0:04:20]} 20... Bc6 {[%clk 0:04:24.8]} 21. Rfb1
{[%clk 0:04:17.5]} 21... Nf5 {[%clk 0:04:23.1]} 22. Ne1 {[%clk 0:04:16]} 22...
g5 {[%clk 0:04:18.9]} 23. Nc2 {[%clk 0:04:13.5]} 23... Nxe3 {[%clk 0:04:17]} 24.
Qxe3 {[%clk 0:04:12]} 24... Nf4 {[%clk 0:04:16.3]} 25. Nb4 {[%clk 0:04:10.6]}
25... Rhe8 {[%clk 0:03:56.4]} 26. Bg4+ {[%clk 0:04:07.6]} 26... Kb8 {[%clk
0:03:54.8]} 27. Nxc6+ {[%clk 0:04:04.1]} 27... Qxc6 {[%clk 0:03:54.1]} 28. Qc1
{[%clk 0:03:56.8]} 28... Ka8 {[%clk 0:03:53.1]} 29. Qa3 {[%clk 0:03:47.8]} 29...
Rb8 {[%clk 0:03:50.8]} 30. Qa5 {[%clk 0:03:19.8]} 30... Qb6 {[%clk 0:03:42.9]}
31. Qxb6 {[%clk 0:03:15.2]} 31... Rxb6 {[%clk 0:03:41.5]} 32. Ra5 {[%clk
0:03:14.2]} 32... Reb8 {[%clk 0:03:37.9]} 33. Bd7 {[%clk 0:03:12.9]} 33... Ne2+
{[%clk 0:03:33]} 34. Kh2 {[%clk 0:03:05.8]} 34... Nxc3 {[%clk 0:03:31.6]} 35.
Rc1 {[%clk 0:03:04.3]} 35... b4 {[%clk 0:03:29]} 36. f4 {[%clk 0:02:47.3]} 36...
gxf4 {[%clk 0:03:25.8]} 37. g3 {[%clk 0:02:45.7]} 37... f3 {[%clk 0:03:22.3]}
38. g4 {[%clk 0:02:40.5]} 38... b3 {[%clk 0:03:20.6]} 39. Bf5 {[%clk 0:02:37.2]}
39... Ne4 {[%clk 0:03:18.5]} 40. Rxd5 {[%clk 0:02:27.6]} 40... Nd2 {[%clk
0:03:09.2]} 41. Rd1 {[%clk 0:02:22]} 41... c3 {[%clk 0:03:07.9]} 42. Rxd2 {[%clk
0:02:15.9]} 42... cxd2 {[%clk 0:03:06.8]} 43. Be4 {[%clk 0:02:15.5]} 43... Rc8
{[%clk 0:03:02.7]} 44. Rd7+ {[%clk 0:02:03.4]} 44... Rbc6 {[%clk 0:03:00.7]} 45.
Bxc6+ {[%clk 0:01:58.4]} 45... Kb8 {[%clk 0:02:56.6]} 46. Rb7+ {[%clk
0:01:56.9]} 46... Ka8 {[%clk 0:02:56]} 47. Rc7+ {[%clk 0:01:43.2]} 47... Kb8
{[%clk 0:02:54.2]} 48. Rb7+ {[%clk 0:01:41.4]} 48... Ka8 {[%clk 0:02:53.3]} 49.
Rc7+ {[%clk 0:01:40.6]} 49... Kb8 {[%clk 0:02:52.7]} 50. Rb7+ {[%clk 0:01:39.8]}
1/2-1/2

[Event "Live Chess"]
[Site "Chess.com"]
[Date "2024.06.01"]
[Round "-"]
[White "DJ_Lambton"]
[Black "Hoogleboogle"]
[Result "0-1"]
[WhiteElo "1729"]
[BlackElo "1404"]
[TimeControl "300"]
[EndTime "12:58:35 PDT"]
[Termination "Hoogleboogle won by checkmate"]

1. c4 {[%clk 0:04:58.3]} 1... c5 {[%clk 0:04:56.6]} 2. g3 {[%clk 0:04:57.3]}
2... g6 {[%clk 0:04:51.8]} 3. Bg2 {[%clk 0:04:56.8]} 3... Bg7 {[%clk 0:04:50.6]}
4. Nc3 {[%clk 0:04:56.5]} 4... Nf6 {[%clk 0:04:48.4]} 5. e3 {[%clk 0:04:56]}
5... Nc6 {[%clk 0:04:45.1]} 6. Nge2 {[%clk 0:04:55.4]} 6... d6 {[%clk
0:04:41.5]} 7. O-O {[%clk 0:04:54.8]} 7... Bg4 {[%clk 0:04:36.6]} 8. b3 {[%clk
0:04:54]} 8... h5 {[%clk 0:04:25.3]} 9. h4 {[%clk 0:04:52.5]} 9... Nh7 {[%clk
0:04:09.7]} 10. Bb2 {[%clk 0:04:50.8]} 10... g5 {[%clk 0:04:01.1]} 11. hxg5
{[%clk 0:04:45]} 11... Nxg5 {[%clk 0:03:59]} 12. d3 {[%clk 0:04:44.4]} 12... h4
{[%clk 0:03:45.6]} 13. Qd2 {[%clk 0:04:42.1]} 13... hxg3 {[%clk 0:03:40.4]} 14.
fxg3 {[%clk 0:04:41.4]} 14... Nh3+ {[%clk 0:03:38.1]} 15. Bxh3 {[%clk
0:04:39.7]} 15... Rxh3 {[%clk 0:03:35.4]} 16. Nf4 {[%clk 0:04:37.7]} 16... Rh7
{[%clk 0:03:23.8]} 17. Qf2 {[%clk 0:04:36.3]} 17... Qd7 {[%clk 0:03:12.4]} 18.
Nfd5 {[%clk 0:04:31.2]} 18... O-O-O {[%clk 0:03:07.6]} 19. Nb5 {[%clk
0:04:29.5]} 19... Rdh8 {[%clk 0:03:04.1]} 20. Bxg7 {[%clk 0:04:28]} 20... Rh1+
{[%clk 0:03:01.5]} 21. Kg2 {[%clk 0:04:24.6]} 21... R8h2# {[%clk 0:02:56.6]} 0-1